Cogmind - Beta 14 *** ADVENTURER MODE // 2024.08.13 @ 05:19:58 Player: Street Preacher Result: Destroyed by G-34 Mercenary with Small Laser Performance ------------- Evolutions (0) 0 Regions Visited (1) 200 Robots Destroyed (18) 90 Value Destroyed (350) 350 Prototype IDs (3) 60 Alien Tech Used (0) 0 Bonus (0) 0 TOTAL SCORE: 700 Bonus ------- None Cogmind --------- Core Integrity 0/250 Matter 167/300 Energy 100/100 System Corruption 5% Temperature Cool (6) Movement Walking (190) Ox1 Location -10/Materials Parts ------- > --- POWER (1) -------- (None) > --- PROPULSION (2) --- Aluminum Leg Aluminum Leg > --- UTILITY (2) ------ Large Storage Unit Terrain Scan Processor > --- WEAPON (2) ------- Small Laser Grenade Launcher > --- INVENTORY (15) --- Light Treads Light Treads Hover Unit Medium Matter Pod (100) Large Matter Pod (0) Signal Interpreter Improved Terrain Scanner Seismic Detector ECM Suite Tractor Beam EM Pulse Gun Assault Rifle Light Cannon Mining Laser Hammer Peak State ------------ > --- POWER ------------ Light Ion Engine > --- PROPULSION ------- Light Treads Light Treads > --- UTILITY ---------- Small Storage Unit Improved Terrain Scanner > --- WEAPON ----------- Assault Rifle Mining Laser > --- INVENTORY -------- Light Ion Engine Aluminum Leg Aluminum Leg Compact Wheel Compact Wheel EM Pulse Gun Small Laser [Rating: 9] Favorites ----------- Power Light Ion Engine Engine Light Ion Engine Propulsion Light Treads Treads Light Treads Leg Aluminum Leg Utility Terrain Scan Processor Device Improved Terrain Scanner Storage Large Storage Unit Processor Terrain Scan Processor Weapon Assault Rifle Energy Gun Small Laser Ballistic Gun Assault Rifle Ballistic Cannon Light Cannon Launcher Grenade Launcher Special Weapon Mining Laser Build | -11 -10 ------- Run | Yrd Mat Slots Evolved . | . . Power . | . . Propulsion . | . . Utility . | . . Weapon . | . . Parts Attached 19 | 10 9 Power 2 | 1 1 Engine 2 | 1 1 Core . | . . Reactor . | . . Propulsion 4 | 2 2 Treads 2 | 2 . Leg 2 | . 2 Wheel . | . . Hover . | . . Flight . | . . Utility 5 | 3 2 Device 2 | 2 . Storage 2 | 1 1 Processor 1 | . 1 Hackware . | . . Protection . | . . Artifact . | . . Weapon 8 | 4 4 Energy Gun 3 | 1 2 Energy Cannon . | . . Ballistic Gun 1 | 1 . Ballistic Cannon 1 | . 1 Launcher 1 | . 1 Special Weapon 2 | 2 . Impact Weapon . | . . Slashing Weapon . | . . Piercing Weapon . | . . Special Melee Weapon . | . . Unidentified Prototypes . | . . Parts Lost 2 | 1 1 Power 1 | . 1 Propulsion . | . . Utility . | . . Weapon 1 | 1 . Highest Loss Streak 1 | 1 1 To Critical Strikes . | . . Average Slot Usage (%) 93 | . 93 Engine 8 | . 8 Treads 20 | . 20 Leg 7 | . 7 Device 1 | . 1 Storage 14 | . 14 Processor 12 | . 12 Energy Gun 10 | . 10 Ballistic Gun 9 | . 9 Ballistic Cannon 2 | . 2 Launcher 4 | . 4 Peak Build Rating 9 | 9 9 Average Rating 8 | 7 8 On Entrance 4 | . 9 Naked Turns . | . . Heaviest Build 28 | 12 28 Greatest Support 40 | 40 40 Greatest Overweight (x) 3 | 3 1 Average Overweight (x) . | . . Largest Inventory Capacity 15 | 8 15 Average Capacity 11 | 7 13 Most Carried 15 | 8 15 Average Carried 10 | 6 12 Final Capacity 15 | 8 15 Final Carried 15 | 8 15 Class Distribution -------------------- 100% | Mutant Dominant Class ---------------- Mutant | -10/Materials Resources | -11 -10 ----------- Run | Yrd Mat Matter Collected 622 | 382 240 Remotely . | . . Salvage Created 462 | 184 278 Parts 35 | 18 17 Haulers Intercepted . | . . Recyclers Shooed . | . . Parts Field Recycled . | . . Retrieved Matter . | . . Parts Self-Destructed . | . . Prevented . | . . Kills | -11 -10 ------- Run | Yrd Mat Combat Hostiles Destroyed 10 | . 10 Guns 3 | . 3 Cannons 3 | . 3 AOE 4 | . 4 Classes Destroyed 7 | 3 4 Worker 1 | 1 . Builder 1 | . 1 Tunneler 4 | 4 . Recycler 1 | 1 . Watcher 1 | . 1 Swarmer 3 | . 3 Grunt 7 | . 7 Best Kill Streak 4 | 4 3 Combat Bots Only 3 | . 3 Max Kills in Single Turn 2 | 1 2 Gunslinging . | . . Exploded 2 | . 2 Melee . | . . Uniques/NPCs Destroyed . | . . Combat | -11 -10 -------- Run | Yrd Mat Hostile Shots Fired 101 | . 101 Missed 27 | . 27 Damage Taken 904 | 195 709 Core 255 | 105 150 Absorbed by Shields . | . . Ignored by Resistances 220 | . 220 Core Remaining (%) 58 | 58 . Volleys Fired 66 | 25 41 Largest 2 | 2 2 Hottest 100 | 100 70 Shots Fired 107 | 31 76 Gun 76 | 20 56 Cannon 14 | . 14 Launcher 6 | . 6 Special 11 | 11 . Kinetic 62 | 14 48 Thermal 30 | 17 13 Explosive 6 | . 6 Electromagnetic 9 | . 9 Robot Hit Streak 20 | 9 20 Robot Miss Streak 3 | 1 3 Penetration Max . | . . Secondary Targets 1 | . 1 Max Gunslinging Chain 1 | . 1 Shots Hit Robots 73 | 15 58 Core Hits 25 | 7 18 Critical Kills . | . . Critical Parts Destroyed . | . . Critical Strikes . | . . Melee Attacks . | . . Impact . | . . Slashing . | . . Piercing . | . . Sneak Attacks . | . . Combat Hostiles . | . . Follow-up Attacks . | . . Damage Inflicted 1284 | 175 1109 Guns 743 | 175 568 Cannons 184 | . 184 Explosions 357 | . 357 Melee . | . . Ramming . | . . Kinetic 662 | 109 553 Thermal 155 | 66 89 Explosive 357 | . 357 Electromagnetic 110 | . 110 Impact . | . . Slashing . | . . Piercing . | . . Highest Corruption 5 | 1 5 Average Corruption 3 | 1 3 Corruption Purged . | . . Corruption Blocked . | . . Effects 18 | . 18 Message Errors 4 | . 4 Matter Fused 7 | . 7 Heat Flow Errors 2 | . 2 Energy Discharges 1 | . 1 Data Loss (minor) 2 | . 2 Alerts 1 | . 1 Weapon Failures 1 | . 1 Overload Shots . | . . Overflow Damage . | . . Projectiles . | . . Explosions . | . . Melee . | . . Knockbacks . | . . Impact . | . . Kinetic . | . . Secondary . | . . Self-Inflicted Damage 134 | . 134 Shots 5 | . 5 Rammed . | . . Targets Rammed . | . . Kicked . | . . Crushed . | . . Highest Temperature 176 | 80 176 Average Temperature 33 | 22 42 Received Heat Transfer 264 | . 264 Siege Activations . | . . Robots Corrupted . | . . Combat Hostiles . | . . Parts Fried . | . . Impact Corruptions . | . . Robots Melted . | . . Combat Hostiles . | . . Parts Melted . | . . Heat Transferred 350 | 150 200 Parts Sabotaged . | . . Parts Stolen . | . . Parts Stripped . | . . Power Chain Reactions . | . . Alert | -11 -10 ------- Run | Yrd Mat Peak Influence 158 | 30 158 Initial . | . . Average 47 | 17 62 Maximum Alert Level . | . . Low Security (%) 100 | 100 100 Level 1 . | . . Level 2 . | . . Level 3 . | . . Level 4 . | . . Level 5 . | . . High Security . | . . Max Security . | . . Squads Dispatched 2 | . 2 Investigation 2 | . 2 Extermination . | . . Reinforcement . | . . Assault . | . . Garrison . | . . Intercept . | . . Searches Triggered . | . . Construction Impeded . | . . Haulers Reinforced . | . . Active Scanning Responses . | . . Cargo Convoy Interrupts . | . . Stealth | -11 -10 --------- Run | Yrd Mat Distress Signals . | . . Communications Jammed . | . . Distress Signals . | . . Times Spotted 12 | . 12 Peak Tracking Total 4 | . 4 Tactical Retreats . | . . Traps | -11 -10 ------- Run | Yrd Mat Traps Triggered 5 | . 5 Indirectly . | . . Trap Hack Attempts . | . . Triggered . | . . Disarmed . | . . Reprogrammed . | . . Reused . | . . Traps Extracted . | . . Installed . | . . Triggered . | . . Machines | -11 -10 ---------- Run | Yrd Mat Machines Disabled . | . . Max in Single Turn . | . . Machines Repaired . | . . Machines Dismantled . | . . Machines Sabotaged . | . . Overloaded Fab Kills . | . . Hacking | -11 -10 --------- Run | Yrd Mat Machines Accessed 5 | . 5 Terminals 4 | . 4 Fabricators . | . . Repair Stations 1 | . 1 Recycling Units . | . . Scanalyzers . | . . Garrison Access . | . . Total Hacks 21 | . 21 Successful 9 | . 9 Failed 12 | . 12 Catastrophic 1 | . 1 Database Lockouts . | . . Manual . | . . Terminals 19 | . 19 Fabricators . | . . Repair Stations 2 | . 2 Recycling Units . | . . Scanalyzers . | . . Garrison Access . | . . Terminal Hacks 8 | . 8 Record 1 | . 1 Prototype ID Bank 1 | . 1 Branch Access Points 1 | . 1 Alert Level 1 | . 1 Maintenance Status 1 | . 1 Surveillance Status 1 | . 1 Hauler Manifests 1 | . 1 Zone Layout 1 | . 1 Fabricator Hacks . | . . Repair Station Hacks 1 | . 1 Scan Component 1 | . 1 Recycling Unit Hacks . | . . Scanalyzer . | . . Garrison Access Hacks . | . . Unauthorized Hacks . | . . Terminals . | . . Fabricators . | . . Repair Stations . | . . Recycling Units . | . . Scanalyzers . | . . Garrison Access . | . . Data Cores Recovered . | . . Used . | . . Hacking Detections 5 | . 5 Full Trace Events 4 | . 4 Feedback Events 1 | . 1 Corruption 1 | . 1 Feedback Blocked . | . . Robot Schematics Acquired . | . . Robots Built . | . . Authchips . | . . Time . | . . Total Robot Build Rating . | . . Part Schematics Acquired . | . . Parts Built . | . . Authchips . | . . Time . | . . Total Part Build Rating . | . . Parts Repaired . | . . Time . | . . Parts Recycled . | . . Recycled Matter . | . . Retrieved Matter . | . . Retrieved Components . | . . Parts Scanalyzed . | . . Part Schematics Acquired . | . . Parts Damaged . | . . Bothacking | -11 -10 ------------ Run | Yrd Mat Used RIF Installer . | . . Robots Hacked . | . . Non-combat . | . . Combat . | . . Robot Hacks Applied . | . . Relay Couplers Released . | . . Fabnet Peak Effective % . | . . Robots Rewired . | . . Allies Hacked . | . . Hacks Repelled . | . . Allies | -11 -10 -------- Run | Yrd Mat Total Allies . | . . Largest Group . | . . Highest-Rated Group . | . . Highest-Rated Ally . | . . Total Orders . | . . Ally Attacks . | . . Total Damage . | . . Kills . | . . Allies Corrupted . | . . Allies Melted . | . . Intel | -11 -10 ------- Run | Yrd Mat Robot Analysis Total . | . . Derelict Logs Recovered . | . . Drone Launches . | . . Drone Recoveries . | . . Exploration | -11 -10 ------------- Run | Yrd Mat Turns Passed 1290 | 447 843 Spaces Moved 647 | 227 420 Core 23 | 23 . Treads 521 | 204 317 Legs 103 | . 103 Wheels . | . . Hover . | . . Flight . | . . Fastest Speed 50 | 50 160 Average Speed 161 | 150 167 Slowest Speed 200 | 200 190 Overloaded Moves . | . . Propulsion Burnouts . | . . Robots Hopped . | . . Cave-ins Triggered 1 | 1 . Exploration Rate (%) 38 | 11 66 Regions Visited 1 Branch Regions . Pre-discovered Areas . | . . Known Exits Taken . | . . Unknown Exits Taken 1 | 1 . Scrap Searched . | . . Spaces Dug 7 | 7 . Terrain Destroyed 34 | 7 27 Melee . | . . Projectile 7 | 7 . AOE 27 | . 27 Terrain Rammed . | . . Walls Destroyed . | . . Machines Disabled . | . . Actions | -11 -10 --------- Run | Yrd Mat Total 761 | 281 480 Wait . | . . Move 646 | 226 420 Hop . | . . Pick Up 25 | 17 8 Fast Attach 1 | 1 . Attach 7 | 7 . Detach . | . . Swap 11 | 2 9 Drop 5 | 3 2 Fire 66 | 25 41 Melee . | . . Ram . | . . Kick . | . . Crush . | . . Escape Stasis . | . . Rewire . | . . Trap . | . . Miscellaneous . | . . Route ------- -11/Scrapyard -10/Materials (discovered 4 exits: [*Mat x3] / *Min) History --------- Turn | Location | Event 12 | -11/Scrapyard | Discovered new exit (range 16) 300 | -11/Scrapyard | Crushed by falling debris 448 | -11/Scrapyard | Entered Materials 449 | -10/Materials | Build established: Mutant 483 | -10/Materials | Core integrity fell below 50% 625 | -10/Materials | Discovered new exit (range 10) 787 | -10/Materials | Discovered new exit (range 16) 896 | -10/Materials | Discovered new exit (range 12) 976 | -10/Materials | Discovered new exit (range 19) 1150 | -10/Materials | Identified exit to Mines 1181 | -10/Materials | Core integrity fell below 20% 1291 | -10/Materials | Destroyed by G-34 Mercenary with Small Laser Last Messages --------------- Scanning EM Pulse Gun... Ready to Repair: EM Pulse Gun Rating: 1 Time: 13 01211_ Repair Station unresponsive. 01214_ R-06 Scavenger collects Heat Sink. 01220_ System corrupted: Matter fused (-9). 01220_ The unstable cave ceiling collapses. 01241_ K-01 Serf collects debris. 01251_ W-16 Scout destroyed. 01252_ System corrupted: Matter fused (-9). 01264_ Triggered Alarm Trap. 01264_ An alarm sounds. 01264_ ALERT: Alarm triggered, dispatching investigation squad. 01281_ U-05 Engineer lays Concrete. 01288_ System corrupted: Matter fused (-8). 01288_ U-05 Engineer lays Concrete. 01288_ G-34 Mercenary destroyed. Map ----- +----------------------------------------------------+ | | | | | | | | | | | | | | | | | | | | | ????????????????????????????????????????? | | ????????????????????????????????????????? | | ????????????????????????????????????????? | | ????????????????????????????????????????? | | ????????????????????????????????????????? | | ????????????????????????????????????????? | | ????????????????????????????????????????? | | ????????????????????????????????????????? | | ?????????????????????????????############ | | ?????????????????????????????# # | | ?????????????????????????????# "" # | | ?????????????????????????????# """ """ | | ?????##??????????????????##### """ R" | | ?????# ################ / """ """ | | ?????# # [% # # | | ?????# @ %= # | | ?????# ######## g # # | | ?????????????????# r ##### # | | ?????????????????# u #???# ## | | ?????????????????# ##### ##### | | ?????????????????# | | ?????????????????# ###### | | ?????????????????# #????# | | ?????????????????# #????####+########### | | ?????????????????# #???????????????????? | | ?????????????????# #???????????????????? | | ?????????????????# ######??????????????? | | ?????????????????# ## #????????####### | | ?????????????????# ## #????????# | | ?????????????????# ## #????????# | | ?????????????????# ## #????????# """ | | ?????????????????# ## #????????# """ | | ?????????????????# ## #????????# """ | | ?????????????????# ## #????????# | | ??????############ ####+#############+## | | ??????# | | ??????# < | | ??????# | | ??????# ##+##### """ """ #+####### | | ??????# # ## """"""""" # ## | +----------------------------------------------------+ Best States ------------- Heat Dissipation 25 Energy Generation 10 Energy Capacity 125 Matter Stores 300 Matter Capacity 300 Sight Range 16 Terrain Scan Range 16 Terrain Scan Density 85 Resistance: KI 20 Resistance: TH 20 Resistance: EX 20 Resistance: EM 20 Resistance: I 20 Resistance: S 20 Resistance: P 20 Evasion (%) 50 Recoil Reduction 2 Offensive Hacking 10 Item Schematics ----------------- None Robot Schematics ------------------ None Fabricated ------------ Nothing Alien Tech Used ----------------- None Achievements -------------- Let's See Who's Tougher Challenges ------------ None Game ------ Seed RemoteSuperchargedPerforator Manual? 0 Play Time 00:24:04 Cumulative 3.6 hours Start 2024.08.13 @ 04:57:16 End 2024.08.13 @ 05:19:58 Sessions 1 Manual Loads 0 Difficulty Adventurer Special Mode None Game No. 5 Rogue 2 Adventurer 3 Explorer 0 Win Type - Total 0 Types 0/0/0/0/0/0/0/0/0 Lore% 1 Gallery% 8 Achievement% 10 Wizard Run 0 Options --------- Layout 1 ASCII 0 Keyboard 0 Movement Mouse Keybinds 0 Fullscreen 1 Font 48/Smallcaps Map View 50x35 Zoom Use 0% Tactical HUD 1 Map Filters NONE Filters NONE Steam 1 RUN: bae91186-e02c-4615-bfbe-9dc1e820041e